bitfinex/quotes_ETHUSD_20260108
["timestamp","ask_amount","ask_price","bid_price","bid_amount"]
[1767888605577,0.84359986,3102.0,3101.1,0.92090213]
[1767888605578,4.06735272,3102.0,3101.1,0.92090213]
[1767888606276,4.06735272,3102.0,3100.4,3.32203458]
[1767888606277,4.5652206,3101.8,3100.5,0.96262002]
[1767888606468,3.25629545,3101.7,3100.5,0.96262002]
[1767888606658,0.7821516,3101.6,3100.5,0.96262002]
[1767888606858,0.846,3101.5,3100.5,0.96262002]
[1767888607050,0.03225702,3101.4,3099.8,0.96262002]
[1767888607249,1.84016085,3101.5,3100.0,0.96262002]
[1767888607564,0.03225702,3101.4,3100.0,0.96262002]
[1767888607864,0.18724179,3101.3,3100.0,0.96262002]
[1767888608083,1.02641787,3101.2,3099.7,0.96262002]
[1767888608453,7.44348527,3101.1,3099.7,4.1887016]
[1767888608684,0.87825702,3101.0,3099.7,4.1887016]
[1767888608852,1.87241787,3101.0,3099.7,0.96262002]
[1767888609051,1.15464045,3100.9,3099.7,0.96262002]
[1767888609360,1.02641787,3100.8,3099.3,4.18909087]
[1767888609792,1.02641787,3100.8,3099.3,0.96262002]
[1767888609995,1.02641787,3100.8,3099.4,3.22635721]
[1767888610274,1.02641787,3100.8,3099.3,4.18913122]
[1767888610511,0.99416085,3100.5,3098.5,0.96262002]
[1767888610727,3.57105975,3100.2,3098.9,0.96262002]
[1767888610897,1.87241787,3100.4,3098.9,0.96262002]
[1767888611213,0.18724179,3100.3,3099.0,3.22677477]
[1767888611710,0.18724179,3100.3,3098.9,0.96262002]
[1767888612004,0.03225702,3100.2,3098.9,0.96262002]
[1767888612187,0.03225702,3100.2,3099.0,0.96262002]
[1767888612690,6.45140478,3100.1,3099.0,0.96262002]
[1767888612885,0.64836618,3100.0,3099.0,0.96262002]
[1767888613097,0.846,3099.9,3099.0,0.96262002]
[1767888614712,6.45202916,3099.8,3099.0,0.96262002]
[1767888615986,3.22601458,3099.8,3099.0,0.96262002]
[1767888616921,4.07195238,3099.9,3099.0,4.18945626]
[1767888617211,0.846,3099.9,3099.1,1.38156565]
[1767888617410,4.07191948,3099.9,3099.1,1.38156565]
[1767888617986,7.29783896,3099.9,3099.1,1.38156565]
[1767888618188,7.29783896,3099.9,3099.1,0.96262002]
[1767888618523,7.29783896,3099.9,3098.8,0.96262002]
[1767888619230,11.51791929,3099.9,3098.8,0.96262002]
[1767888619422,4.5652206,3099.5,3098.2,0.96262002]
[1767888619610,0.846,3099.4,3098.2,0.96262002]
[1767888619791,0.54112206,3099.3,3098.2,4.19022553]
[1767888619992,1.84016085,3099.4,3098.3,0.96262002]
[1767888620216,1.84016085,3099.4,3098.0,3.2278155]
[1767888620217,0.99416085,3099.3,3098.0,0.96262002]
[1767888620422,0.99416085,3099.3,3098.0,4.19043853]
[1767888620623,0.99416085,3099.3,3098.1,0.96262002]
[1767888621121,0.99416085,3099.3,3098.1,4.19039726]
[1767888621420,6.45327826,3099.2,3098.2,1.38165975]
[1767888621926,6.45327826,3099.2,3098.2,0.96262002]
[1767888623891,0.846,3099.1,3098.5,0.001]
[1767888625601,4.07276708,3099.1,3098.5,0.001]
[1767888629403,7.29953416,3099.1,3098.5,0.001]
[1767888629914,0.03225702,3099.0,3097.9,0.96262002]
[1767888630113,0.72995342,3099.0,3098.1,0.96262002]
[1767888631711,3.22695149,3098.9,3098.1,0.96262002]
[1767888632397,6.45390298,3098.9,3098.1,0.96262002]
[1767888632624,7.25688862,3098.9,3098.1,0.96262002]
[1767888632815,0.80298564,3098.9,3098.1,0.96262002]
[1767888632997,3.22688877,3099.0,3098.1,0.96262002]
[1767888633203,4.07283578,3099.1,3098.2,0.90747]
[1767888633808,7.29967156,3099.1,3098.2,0.90747]
[1767888634004,3.22622273,3099.6,3098.3,0.93974576]
[1767888634207,3.22591051,3099.9,3098.3,0.93974576]
[1767888634421,0.846,3099.5,3098.5,0.90747]
[1767888634750,0.846,3099.5,3098.5,1.03642431]
[1767888636409,0.846,3099.5,3098.7,0.90747]
[1767888638030,0.87825702,3099.5,3098.7,0.90747]
[1767888638238,8.2221452,3099.5,3098.4,1.64798041]
[1767888638404,8.2221452,3099.5,3098.5,0.16479804]
[1767888638612,0.28746317,3099.4,3098.4,4.13591282]
[1767888638812,8.2221452,3099.5,3098.4,0.90847]
[1767888639111,0.03225702,3099.3,3098.4,0.90847]
[1767888639317,0.28752438,3099.2,3098.4,0.90847]
[1767888639528,0.03225702,3099.1,3098.4,0.90847]
[1767888639836,0.846,3099.0,3098.4,0.001]
[1767888640913,0.846,3099.0,3098.4,0.90847]
[1767888642144,4.07288602,3099.0,3098.4,0.90847]
[1767888642814,0.846,3099.0,3098.4,0.90847]
[1767888644047,0.846,3099.0,3098.5,0.90747]
[1767888644319,0.92342234,3100.1,3098.6,0.90747]
[1767888644446,1.16615401,3100.0,3098.6,0.90747]
[1767888644651,6.73971801,3099.9,3098.8,0.90747]
[1767888644958,1.24357635,3099.8,3098.8,0.90747]
[1767888645157,0.28789699,3099.7,3098.6,4.13469782]
[1767888645463,1.98085907,3099.7,3098.6,4.58962693]
[1767888645628,0.28789699,3099.6,3098.6,4.58962693]
[1767888645828,0.846,3099.5,3098.6,4.58962693]
[1767888646025,0.28789699,3099.4,3098.7,0.90747]
[1767888649327,0.28789699,3099.4,3098.8,0.90747]
[1767888649633,0.28789699,3099.4,3098.9,1.32092606]
[1767888650470,0.28789699,3099.4,3098.9,0.90747]
[1767888650846,0.28789699,3099.4,3098.9,0.93973951]
[1767888651029,0.846,3099.3,3098.9,0.90747]
[1767888651731,0.846,3099.3,3098.7,3.22713037]
[1767888651943,0.846,3099.3,3098.6,0.90747]
[1767888651944,0.846,3099.3,3098.6,4.13470615]
[1767888652144,0.846,3099.3,3098.8,3.22703843]
[1767888652466,0.846,3099.3,3098.7,4.54807088]
[1767888652864,0.846,3099.3,3098.7,1.32094062]
[1767888653061,0.846,3099.3,3098.8,0.90747]
[1767888653277,0.846,3099.3,3098.9,4.13439089]
[1767888653573,0.846,3099.3,3099.1,0.90747]
[1767888653945,0.846,3099.3,3099.0,0.41343909]
[1767888654148,0.846,3099.3,3098.9,0.90747]
[1767888654983,0.846,3099.3,3098.5,0.09668063]
[1767888655158,0.846,3099.3,3098.7,3.2271089]
[1767888655355,0.846,3099.3,3098.6,6.45452784]
[1767888655767,0.92342234,3098.6,3096.6,0.16813192]
[1767888655955,5.01068891,3099.2,3096.6,0.16813192]
[1767888655956,0.92342234,3097.7,3096.6,0.16813192]
[1767888656267,1.52814456,3097.6,3096.4,0.09668063]
[1767888656454,0.92258307,3097.5,3096.4,0.07140638]
[1767888656659,0.92258307,3097.5,3096.4,0.09668063]
[1767888656975,1.02285831,3097.4,3096.7,0.09668063]
[1767888657176,0.846,3097.3,3096.7,0.09668063]
[1767888657570,4.07462099,3097.3,3096.7,0.09668063]
[1767888657748,4.07462099,3097.3,3096.5,0.09668063]
[1767888657948,0.846,3097.3,3096.7,0.09668063]
[1767888658146,3.22830578,3097.6,3096.7,0.09668063]
[1767888658348,3.22830578,3097.6,3096.5,0.09668063]
[1767888658349,1.26117281,3097.5,3096.8,0.09668063]
[1767888659411,4.48967492,3097.5,3096.8,0.09668063]
[1767888659709,4.15136216,3098.0,3096.8,0.09668063]
[1767888659710,0.846,3097.4,3096.8,0.09668063]
[1767888659910,0.846,3097.3,3096.8,0.09668063]
[1767888660818,3.22799315,3097.9,3097.0,0.09668063]
[1767888660995,0.846,3097.8,3097.0,0.09668063]
[1767888661193,0.846,3097.7,3097.0,0.09668063]
[1767888661398,3.22830578,3097.6,3096.8,0.09668063]
[1767888661731,6.86404214,3097.6,3096.8,0.09668063]
[1767888661884,3.63573636,3097.6,3096.8,0.09668063]
[1767888662328,0.40743058,3097.6,3097.0,0.09668063]
[1767888662624,0.846,3097.5,3097.1,0.001]
[1767888663282,0.92342234,3098.0,3097.1,0.001]
[1767888663484,0.846,3097.9,3097.4,0.09668063]
[1767888663739,0.846,3097.8,3097.5,0.0322841]
[1767888663884,6.45494448,3098.4,3097.4,0.09668063]
[1767888664080,2.78526371,3098.3,3097.2,0.09668063]
[1767888664296,1.01490394,3098.3,3097.2,0.09668063]
[1767888664506,0.846,3098.2,3097.6,0.09668063]
[1767888664789,0.846,3098.2,3097.4,0.09668063]
[1767888665512,3.22778477,3098.1,3097.4,0.09668063]
[1767888668043,3.22778477,3098.1,3097.2,3.32538399]
[1767888668044,0.96281272,3098.0,3097.1,0.09768063]
[1767888668243,0.03225702,3098.0,3097.2,0.09668063]
[1767888668433,0.846,3097.9,3097.2,0.09668063]
[1767888669521,3.22809735,3097.8,3097.2,0.09668063]
[1767888670219,3.22809735,3097.8,3097.1,0.001]
[1767888670220,0.99506974,3097.7,3097.1,0.001]
[1767888670549,3.22809735,3097.8,3097.1,0.001]
[1767888670751,0.74183823,3098.0,3097.2,0.09668063]
[1767888670937,0.846,3097.9,3097.2,0.09668063]
[1767888671418,0.846,3097.9,3097.4,0.09668063]
[1767888672232,0.846,3097.9,3097.3,0.03228618]
[1767888672233,0.846,3097.8,3097.3,3.35756373]
[1767888672550,0.846,3097.7,3097.3,3.32525087]
[1767888672750,0.76958478,3097.6,3097.3,0.09668063]
[1767888672954,9.68751635,3098.4,3097.5,0.09668063]
[1767888673159,0.846,3098.3,3097.7,0.09668063]
[1767888673728,0.46668381,3098.5,3097.5,1.05112819]
[1767888673936,0.846,3098.4,3097.7,0.09668063]
[1767888674449,7.41692398,3098.8,3097.7,3.32484434]
[1767888674658,0.846,3098.7,3097.7,3.32486702]
[1767888674851,7.41692398,3098.8,3097.9,0.09668063]
[1767888674852,3.22705563,3098.8,3097.9,0.09668063]
[1767888675055,0.846,3098.7,3097.9,0.09668063]
[1767888675562,3.22697951,3098.9,3098.3,0.09668063]
[1767888675776,0.846,3098.8,3098.3,0.09668063]
[1767888675943,0.846,3098.8,3098.1,0.09668063]
[1767888676148,0.002,3098.3,3098.1,0.09668063]
[1767888676351,0.846,3098.2,3098.0,3.22785002]
[1767888676550,0.846,3098.2,3097.9,0.41981043]
[1767888676551,0.002,3099.0,3098.1,0.46144668]
[1767888676749,0.846,3098.9,3098.1,0.46144668]
[1767888677063,0.846,3098.9,3098.1,3.6891375]
[1767888677276,0.846,3098.9,3098.1,6.91692227]
[1767888677445,0.002,3099.0,3098.1,3.6891375]
[1767888677634,0.002,3099.0,3098.3,1.05112819]
[1767888677840,0.002,3099.3,3098.9,0.09668063]
[1767888678062,0.846,3099.2,3098.9,0.09668063]
[1767888678371,0.002,3099.3,3098.9,0.09668063]
[1767888678588,0.846,3099.2,3098.9,0.09668063]
[1767888678735,0.846,3099.2,3098.2,1.74282876]
[1767888678939,0.846,3099.2,3098.4,0.09668063]
[1767888679770,0.002,3099.3,3098.6,0.09668063]
[1767888679941,0.846,3099.2,3098.6,0.09668063]
[1767888681064,0.846,3099.2,3098.5,3.22736808]
[1767888681393,0.846,3099.2,3096.9,0.16]
[1767888681540,3.74341579,3098.6,3096.7,0.95444756]
[1767888681880,6.45494448,3098.4,3096.9,3.22895385]
[1767888682037,0.846,3098.3,3097.0,0.03228931]
[1767888682238,0.846,3098.2,3096.9,3.2612442]
[1767888682580,0.846,3098.2,3096.9,3.22895385]
[1767888683349,0.846,3098.1,3097.0,0.95444756]
[1767888683964,3.22788896,3098.0,3097.0,7.41224108]
[1767888684171,3.22788896,3098.0,3097.1,0.74232411]
[1767888684672,0.846,3097.9,3097.1,0.74232411]
[1767888684974,3.22778477,3098.1,3097.1,0.74232411]
[1767888685148,0.846,3098.0,3097.1,1.69677167]
[1767888685465,0.846,3097.9,3097.2,0.03228722]
[1767888685704,0.96281272,3097.8,3097.1,0.74232411]
[1767888685976,0.96281272,3097.8,3097.3,3.22861847]
[1767888686179,0.96281272,3098.2,3097.3,6.48952312]
[1767888686469,0.846,3098.1,3097.4,0.03228514]
[1767888686676,0.846,3098.1,3097.3,6.45723694]
[1767888687166,0.846,3098.1,3097.3,3.22861847]
[1767888687339,1.80881272,3098.1,3097.4,0.32286185]
[1767888688650,5.03661415,3098.1,3097.4,0.32286185]
[1767888688848,0.96281272,3098.0,3097.3,3.22861558]
[1767888689054,0.96281272,3098.0,3097.4,0.001]
[1767888689480,0.96281272,3098.0,3097.4,3.22949799]
[1767888689878,0.96281272,3098.0,3097.4,0.001]
[1767888690280,0.846,3097.9,3097.4,0.001]
[1767888691229,0.846,3097.9,3096.8,0.09668063]
[1767888691230,0.96281272,3097.4,3096.0,3.25952256]
[1767888691371,0.96281272,3097.4,3096.3,0.09668063]
[1767888691576,0.846,3097.3,3096.7,0.09668063]
[1767888691816,0.96281272,3097.7,3096.2,0.95444756]
[1767888691978,0.846,3097.6,3096.3,1.05112819]
[1767888692180,1.02688127,3097.6,3096.4,0.03229556]
[1767888692400,0.96281272,3097.7,3096.4,0.03229556]
[1767888692575,0.846,3097.5,3096.5,3.22938696]
[1767888692769,0.846,3097.5,3096.6,0.03229348]
[1767888692997,4.07441224,3097.5,3096.4,4.21830964]
[1767888693213,0.846,3097.4,3096.6,0.98878739]
[1767888693399,0.90026914,3098.0,3096.6,4.2181357]
[1767888693400,0.846,3097.3,3096.6,4.2181357]
[1767888693605,0.846,3097.3,3096.7,0.43471109]
[1767888694178,0.76890186,3097.3,3096.8,1.08546802]
[1767888694704,9.68304174,3098.2,3096.8,1.08546802]
[1767888694705,0.846,3097.2,3096.8,1.11775847]
[1767888695018,0.846,3097.1,3096.8,4.31459792]
[1767888695511,0.846,3097.1,3096.7,0.43471109]
[1767888695512,0.846,3097.3,3096.7,0.43471109]
[1767888695719,0.846,3097.3,3096.5,1.08546802]
[1767888696273,0.846,3097.3,3096.5,4.31491149]
[1767888696485,0.846,3097.3,3096.6,3.22933705]
[1767888696904,0.846,3097.3,3096.5,1.08546802]
[1767888697130,0.846,3097.3,3096.5,4.31491471]
[1767888697335,0.846,3097.3,3096.6,0.43149147]
[1767888697534,3.22812328,3097.8,3096.7,1.08546802]
[1767888697827,0.846,3097.7,3096.8,0.98878739]
[1767888698033,1.74626914,3097.7,3096.7,0.09668063]
[1767888698641,0.846,3097.7,3096.7,0.09668063]
[1767888699106,4.07423177,3097.7,3096.7,3.32589412]
[1767888699431,0.846,3097.7,3096.9,0.98878739]
[1767888699631,0.846,3097.7,3097.0,0.98878739]
[1767888699834,4.07423196,3097.7,3097.0,0.98878739]
[1767888700133,0.846,3097.7,3096.9,0.98878739]
[1767888700311,0.846,3097.7,3096.9,1.08546802]
[1767888700511,0.846,3098.0,3097.3,1.08546802]
[1767888700812,0.846,3098.0,3097.4,1.02107253]
[1767888701019,0.846,3098.0,3097.4,3.22851423]
[1767888701232,4.12779385,3098.4,3097.5,0.3357481]
[1767888701533,0.846,3098.1,3097.5,0.46471282]
[1767888702135,0.846,3098.1,3097.5,0.43242873]
[1767888702739,0.846,3098.1,3097.7,0.09668063]
[1767888703641,3.22663913,3099.2,3098.1,0.09668063]
[1767888703932,3.22663913,3099.2,3097.9,1.08546802]
[1767888703933,0.846,3098.9,3098.0,0.09668063]
[1767888704543,0.846,3098.9,3097.7,3.60715644]
[1767888705147,4.07305392,3098.9,3097.7,4.59594383]
[1767888705343,4.07305392,3098.9,3097.8,0.78241663]
[1767888705862,0.03225702,3098.8,3097.8,0.78241663]
[1767888706069,0.03225702,3098.8,3097.7,4.59594383]
[1767888706070,0.90026914,3097.9,3096.8,0.001]
[1767888706393,0.90026914,3097.7,3096.8,0.001]
[1767888706538,0.93252616,3097.7,3096.8,0.001]
[1767888707338,7.3568807,3097.6,3096.8,0.001]
[1767888707680,0.73891377,3097.5,3096.8,0.001]
[1767888709451,0.90026914,3097.3,3096.8,0.001]
[1767888709643,0.846,3097.2,3096.8,0.001]
[1767888710987,3.22882696,3097.1,3096.8,0.001]
[1767888711486,0.846,3097.2,3096.8,0.001]
[1767888711786,0.846,3097.1,3096.8,0.001]
[1767888712011,0.844,3097.1,3096.8,0.001]
[1767888712491,0.844,3097.1,3096.4,0.98878739]
[1767888712689,0.844,3097.1,3096.1,0.98878739]
[1767888712866,0.844,3097.1,3096.2,1.73365614]
[1767888713067,0.844,3097.1,3096.3,6.4593224]
[1767888713260,4.1287043,3097.5,3096.4,0.03229556]
[1767888713460,0.846,3097.4,3096.3,6.4593224]
[1767888713669,3.22820156,3097.7,3096.4,0.98878739]
[1767888713986,0.846,3097.6,3096.5,0.74481098]
[1767888714284,0.03225702,3097.5,3096.5,0.74481098]
[1767888714495,0.03225702,3097.5,3096.8,0.001]
[1767888715485,3.22851423,3097.4,3096.8,0.001]
[1767888715701,3.26071376,3097.5,3096.8,0.001]
[1767888716089,0.03225702,3097.5,3096.8,0.001]
[1767888716311,0.846,3097.6,3096.8,0.001]
[1767888716467,3.22841226,3097.5,3096.8,0.001]
[1767888716666,3.26066928,3097.5,3096.8,0.001]
[1767888717864,0.846,3097.4,3096.8,0.001]
[1767888718991,3.22809881,3097.8,3096.8,0.001]
[1767888719174,0.03225702,3097.9,3096.8,0.001]
[1767888719175,0.846,3097.4,3096.8,0.001]
[1767888719774,4.0745425,3097.4,3096.8,0.001]
[1767888720101,0.846,3097.4,3096.8,0.98978739]
[1767888720805,3.22799315,3097.9,3096.8,0.98978739]
[1767888721099,0.90026914,3098.5,3097.1,0.98878739]
[1767888721399,0.846,3098.4,3097.3,0.98878739]
[1767888721584,3.22726392,3098.6,3097.0,0.98878739]
[1767888721787,0.846,3098.5,3097.2,0.98878739]
[1767888722809,0.03225702,3098.4,3097.2,0.98878739]
[1767888722963,1.81746096,3098.5,3097.2,0.98878739]
[1767888723168,0.82720431,3098.4,3097.2,1.73343152]
[1767888723581,0.82720431,3098.4,3097.3,0.99736215]
[1767888723913,0.82720431,3098.4,3097.4,7.45439061]
[1767888724105,0.846,3098.5,3097.4,7.45439061]
[1767888724413,4.07337552,3098.5,3097.4,7.45439061]
[1767888724799,0.93920394,3098.8,3097.4,7.45439061]
[1767888725000,0.93920394,3099.1,3097.5,0.99736215]
[1767888725314,0.846,3098.7,3097.5,0.99736215]
[1767888725488,13.82187424,3099.2,3097.7,0.95133871]
[1767888725688,0.846,3099.1,3097.7,0.95133871]
[1767888726012,4.13525994,3099.2,3097.9,0.95133871]
[1767888726199,0.846,3099.0,3097.9,0.95133871]
[1767888726400,0.846,3099.0,3097.9,1.69209205]
[1767888726796,0.002,3098.1,3097.9,1.69209205]
[1767888727033,1.75459598,3099.0,3097.9,1.69209205]
[1767888727283,0.90859598,3098.0,3096.8,0.95233871]
[1767888727495,0.846,3097.9,3096.9,0.98362906]
[1767888727996,0.846,3097.9,3097.0,3.22893122]
[1767888728310,4.07401523,3097.9,3097.1,0.03228826]
[1767888728502,0.846,3097.9,3097.1,0.03228826]
[1767888728699,1.25337886,3097.9,3097.1,0.03228826]
[1767888729012,3.22768909,3098.2,3097.1,0.95133871]
[1767888729185,0.846,3098.1,3097.2,0.03228722]
[1767888729380,3.22768909,3098.2,3097.2,0.03228722]
[1767888729381,0.846,3098.0,3097.2,0.03228722]
[1767888729586,0.846,3098.0,3097.1,0.95133871]
[1767888729980,3.22761276,3098.3,3097.2,6.48973264]
[1767888730197,0.846,3098.2,3097.3,0.74410713]
[1767888730409,0.002,3098.4,3097.4,0.95133871]
[1767888730827,3.22951318,3098.4,3097.4,0.95133871]
[1767888731522,0.002,3098.4,3097.4,0.95133871]
[1767888731686,3.22951696,3098.4,3097.4,0.95133871]
[1767888731887,3.22951696,3098.4,3097.5,0.1727732]
[1767888732317,0.002,3098.4,3097.6,3.22830578]
[1767888732685,0.002,3098.4,3097.7,0.95133871]
[1767888733720,0.846,3098.7,3097.7,0.95133871]
[1767888734091,4.07317672,3098.7,3097.7,0.95133871]
[1767888734401,0.846,3098.7,3097.9,3.22799315]
[1767888734604,4.0731683,3098.7,3097.9,3.22799315]
[1767888735326,0.846,3098.7,3097.9,3.22799315]
[1767888735532,0.846,3098.7,3097.9,4.17933186]
[1767888736521,0.846,3098.7,3097.9,3.22799315]
[1767888736721,0.846,3098.7,3097.9,7.27080535]
[1767888737022,0.90859598,3099.1,3098.0,0.95133871]
[1767888737230,1.75459598,3099.1,3098.0,0.95133871]
[1767888737404,4.98137913,3099.1,3098.0,0.95133871]
[1767888738014,4.07278315,3099.1,3098.0,0.95133871]
[1767888738222,1.05327832,3099.0,3098.1,0.95133871]
[1767888738427,7.306,3099.2,3098.2,3.22768058]
[1767888738597,7.306,3099.2,3098.2,4.17901929]
[1767888739114,10.53265387,3099.2,3098.2,4.17901929]
[1767888739300,7.306,3099.2,3098.3,0.95133871]
[1767888739804,6.46,3099.2,3098.3,0.95133871]
[1767888740002,0.002,3099.3,3098.3,0.95133871]
[1767888740206,0.002,3098.9,3098.3,0.95133871]
[1767888740603,0.002,3099.2,3098.5,0.95133871]
[1767888740919,5.92e-06,3099.3,3098.5,0.95133871]
[1767888741500,5.92e-06,3099.3,3098.6,0.95133871]
[1767888741700,0.002,3099.7,3098.8,0.95133871]
[1767888742714,0.002,3099.7,3098.9,3.22695149]
[1767888743228,0.002,3099.7,3098.3,0.846]
[1767888743229,0.942853,3099.6,3098.3,0.846]
[1767888743432,0.91059598,3099.6,3098.8,3.22704526]
[1767888744026,0.002,3099.6,3098.8,6.45410089]
[1767888744545,0.002,3099.6,3098.8,0.74054396]
[1767888746543,0.002,3099.6,3098.9,7.40524169]
[1767888746712,0.002,3099.6,3099.0,0.95133871]
[1767888748528,0.002,3099.6,3099.1,6.45348648]
[1767888749145,0.002,3100.0,3099.1,6.45348648]
[1767888749347,0.002,3100.0,3099.2,0.74048252]
[1767888749919,0.002,3100.0,3099.2,1.69182123]
[1767888750340,0.002,3100.0,3099.2,0.74048252]
[1767888750552,0.002,3100.0,3099.3,3.22653502]
[1767888751115,0.002,3100.0,3099.3,6.45307004]
[1767888751321,0.002,3100.0,3099.3,7.1724253]
[1767888751552,0.002,3100.0,3099.3,3.94589028]
[1767888751756,0.91059598,3100.0,3099.3,3.22653502]
[1767888751956,0.91059598,3100.0,3098.9,0.95133871]
[1767888752251,0.90859598,3099.9,3099.1,3.22669285]
[1767888752430,0.90859598,3099.9,3099.2,3.22661585]
[1767888754424,0.90859598,3099.9,3099.1,3.22769623]
[1767888754624,0.002,3099.7,3099.1,3.22769623]
[1767888754859,0.93369634,3099.7,3099.1,0.001]
[1767888755243,0.93169634,3099.6,3099.1,0.001]
[1767888756040,0.93169634,3099.6,3099.1,3.22773548]
[1767888756339,0.002,3099.7,3099.1,3.22773548]
[1767888756541,0.002,3099.7,3099.1,0.001]
[1767888757536,0.002,3099.7,3099.1,0.03326743]
[1767888757860,0.93369634,3099.7,3099.1,0.03326743]
[1767888758158,0.93369634,3099.7,3099.1,0.001]
[1767888758535,0.002,3099.7,3099.1,0.001]
[1767888758934,0.002,3099.7,3099.1,0.03326743]
[1767888759432,0.002,3099.7,3099.1,3.22769009]
[1767888760429,0.002,3099.7,3099.1,6.45443333]
[1767888760660,0.002,3099.7,3099.1,3.22769009]
[1767888761573,0.002,3099.7,3099.0,3.22680302]
[1767888761873,0.93369634,3099.7,3098.7,3.22713779]
[1767888762036,0.93369634,3099.7,3098.8,0.41317295]
[1767888762239,0.93369634,3099.7,3098.9,3.22690083]
[1767888762735,0.93369634,3099.7,3099.0,3.22684577]
[1767888762940,0.93369634,3099.7,3098.9,3.22690676]
[1767888763142,0.93369634,3099.7,3099.0,6.4536423]
[1767888763446,0.93369634,3099.7,3098.9,6.45390298]
[1767888763642,0.93369634,3099.7,3098.9,7.23106974]
[1767888764362,0.93369634,3099.7,3098.9,4.00411825]
[1767888764942,4.15981838,3099.7,3098.9,4.00411825]
[1767888765271,0.93369634,3099.7,3098.9,4.00411825]
[1767888765463,0.93369634,3099.7,3098.9,7.23106974]
[1767888765668,0.93369634,3099.7,3099.0,0.76442427]
[1767888766054,0.002,3099.7,3099.1,0.93685914]
[1767888766574,0.002,3099.7,3099.1,0.90459171]
[1767888767278,0.002,3099.7,3099.3,0.90459171]
[1767888767445,0.002,3099.7,3099.4,3.22633989]
[1767888767779,0.002,3099.7,3099.4,3.22638164]
[1767888768144,0.002,3099.7,3099.3,3.22650025]
[1767888768548,0.002,3099.7,3099.4,3.22639216]
[1767888768781,0.002,3099.7,3099.4,3.25865646]
[1767888769077,0.002,3099.7,3099.4,6.45282308]
[1767888769469,0.002,3100.0,3099.5,0.90459171]
[1767888769658,0.002,3100.6,3099.7,0.90459171]
[1767888769865,0.002,3100.6,3099.6,0.94168063]
[1767888769866,0.93369634,3100.5,3099.6,0.94168063]
[1767888770157,0.002,3101.3,3099.8,1.00127234]
[1767888770481,0.002,3101.3,3100.1,0.90459171]
[1767888770650,0.002,3101.3,3100.3,0.90459171]
[1767888770853,0.93369634,3101.3,3100.5,0.02050178]
[1767888771756,0.002,3101.3,3100.6,4.12977393]
[1767888772969,0.002,3101.3,3100.5,3.24578797]
[1767888772970,0.002,3101.3,3100.5,0.02050178]
[1767888773182,3.25872281,3101.3,3100.5,0.02050178]
[1767888773359,0.03425702,3101.3,3100.5,3.24575781]
[1767888773685,0.32586534,3101.2,3100.5,0.02050178]
[1767888773856,0.03225702,3101.1,3100.5,3.24576316]
[1767888774053,0.002,3101.3,3100.5,6.4710494]
[1767888774253,0.002,3101.3,3100.5,7.37564111]
[1767888775770,0.002,3101.3,3100.6,0.90459171]
[1767888775982,0.002,3101.3,3100.8,0.90459171]
[1767888776284,0.846,3102.0,3101.0,0.90459171]
[1767888776457,1.77769634,3102.0,3101.0,0.90459171]
[1767888777680,0.93169634,3102.0,3101.1,7.35391613]
[1767888777881,0.848,3102.1,3101.3,0.90459171]
[1767888778268,0.002,3102.1,3101.3,0.90459171]
[1767888779197,0.002,3102.4,3101.6,0.90459171]
[1767888779893,1e-08,3102.7,3102.0,0.90459171]
[1767888780061,0.002,3103.5,3102.0,0.90459171]
[1767888780257,0.002,3103.5,3102.4,0.90459171]
[1767888780258,1.97e-06,3103.5,3102.4,0.90459171]
[1767888780458,0.17766983,3103.4,3102.4,0.90459171]
[1767888780693,1.97e-06,3103.5,3102.4,0.90459171]
[1767888781884,1.97e-06,3103.5,3102.6,0.90459171]
[1767888782390,1.97e-06,3103.5,3102.5,3.22320709]
[1767888782690,1.97e-06,3103.5,3102.4,3.2233067]
[1767888782861,0.98352332,3103.5,3102.1,0.845]
[1767888783067,0.98352332,3103.5,3102.2,3.22350388]
[1767888783290,0.98352332,3103.5,3102.3,3.22341169]
[1767888783492,0.9512663,3103.5,3102.4,3.22326743]
[1767888783796,1.82852135,3103.4,3102.1,0.94967392]
[1767888786273,0.85404607,3102.9,3101.7,0.98311538]
[1767888787494,0.82178905,3102.9,3101.7,0.98311538]
[1767888788202,0.82178905,3102.9,3101.8,3.22393448]
[1767888788501,4.04462086,3102.9,3101.9,0.98311538]
[1767888788803,0.72673147,3102.8,3101.9,0.98311538]
[1767888789001,0.72673147,3102.8,3101.6,0.98311538]
[1767888789382,0.72673147,3102.8,3101.7,3.22403097]
[1767888789681,0.72673147,3102.8,3101.6,0.98311538]
[1767888790277,0.72673147,3102.8,3101.7,4.20715223]
[1767888790598,3.94964997,3102.8,3101.8,1.41349867]
[1767888791402,7.17256847,3102.8,3101.8,1.41349867]
[1767888792307,3.94964997,3102.8,3101.8,4.63742662]
[1767888792495,7.17256847,3102.8,3102.0,0.001]
[1767888792993,0.002,3102.6,3102.0,0.001]
[1767888793903,0.002,3102.6,3102.0,0.46484266]
[1767888794072,0.002,3102.6,3102.0,1.44795804]
[1767888794677,6.44296596,3103.2,3102.2,1.07979601]
[1767888795094,3.22242556,3103.3,3102.2,1.07979601]
[1767888795380,3.22242556,3103.3,3102.2,1.11203119]
[1767888795575,0.64447473,3103.3,3102.3,0.98311538]
[1767888795782,6.4446357,3103.4,3102.3,0.98311538]
[1767888796011,3.22231785,3103.4,3102.3,0.98311538]
[1767888796316,0.95977212,3103.3,3102.2,0.89657999]
[1767888796482,4.14999512,3103.2,3102.2,3.22351879]
[1767888796673,7.37247514,3103.2,3102.1,4.06858028]
[1767888797577,0.95977212,3103.1,3102.1,3.22359795]
[1767888797803,3.22248002,3103.2,3102.2,1.01535056]
[1767888798006,3.22248002,3103.2,3102.3,0.98311538]
[1767888798404,3.22227234,3103.4,3102.3,0.98311538]
[1767888798614,6.44454468,3103.4,3102.3,0.98311538]
[1767888798786,6.44454468,3103.4,3102.3,4.20651822]
[1767888799187,6.44454468,3103.4,3102.4,0.98311538]
[1767888799414,0.73720618,3103.3,3102.4,0.98311538]
[1767888800494,6.44496004,3103.2,3102.2,4.3032613]
[1767888800695,6.44496004,3103.2,3102.2,0.98311538]
[1767888800890,0.03225702,3103.1,3102.2,0.98311538]
[1767888801097,0.03225702,3103.1,3102.0,0.001]